bitfinex/quotes_ETHUSD_20250724
["timestamp","ask_amount","ask_price","bid_price","bid_amount"]
[1753400240007,0.9342,3718.2,3718.1,10.93194573]
[1753400240312,1.7648,3718.2,3718.1,6.37394573]
[1753400240459,1.7648,3718.2,3718.1,4.6914]
[1753400240656,1.7648,3718.2,3718.1,0.1344]
[1753400240860,0.8306,3718.1,3717.4,4.557]
[1753400241100,0.8306,3718.0,3717.0,2.69027695]
[1753400241301,0.8306,3717.8,3717.2,2.69013959]
[1753400241508,0.8306,3717.8,3717.7,0.1344]
[1753400242086,1.7628,3717.8,3717.7,0.1344]
[1753400242268,1.6905,3717.8,3717.7,0.1344]
[1753400242971,4.38026276,3717.8,3717.7,0.1344]
[1753400244188,4.38026276,3717.8,3717.4,0.1344]
[1753400244189,2.68991392,3717.6,3717.4,0.1344]
[1753400244388,3.47355218,3717.4,3717.3,0.1344]
[1753400244708,4.40575218,3717.4,3717.3,0.1344]
[1753400244928,1.7157,3717.4,3717.3,0.1344]
[1753400245689,1.8529,3717.4,3717.3,0.1344]
[1753400245876,1.7157,3717.4,3717.3,0.1344]
[1753400246569,4.43274491,3717.4,3717.3,0.1344]
[1753400247910,4.43274491,3717.4,3715.7,2.69121412]
[1753400247911,0.7986,3716.8,3716.1,0.04]
[1753400248070,2.6906092,3716.7,3716.1,0.04]
[1753400248276,3.48908643,3716.8,3716.7,0.1344]
[1753400248476,0.9358,3716.8,3716.1,0.04]
[1753400248677,2.69048643,3716.8,3716.7,0.1344]
[1753400248881,4.42128643,3716.8,3716.7,0.1344]
[1753400249303,4.42128643,3716.8,3716.1,0.04]
[1753400249304,2.69092083,3716.2,3716.1,0.04]
[1753400249492,3.48952083,3716.2,3716.1,0.04]
[1753400249708,4.42172083,3716.2,3716.1,0.1744]
[1753400252381,2.69117361,3715.9,3715.2,0.551]
[1753400252582,2.69117361,3715.9,3715.2,3.24262718]
[1753400252817,2.71807603,3716.0,3715.8,0.1344]
[1753400252997,2.69113808,3715.9,3715.8,0.1344]
[1753400253510,3.62333808,3715.9,3715.8,0.1344]
[1753400254002,0.9322,3715.9,3715.8,0.1344]
[1753400255027,3.62333808,3715.9,3715.8,0.1344]
[1753400255224,3.65033081,3715.9,3715.8,0.1344]
[1753400255427,3.62333808,3715.9,3715.8,0.1344]
[1753400255588,3.65033081,3715.9,3715.8,0.1344]
[1753400255986,0.9322,3715.9,3715.8,0.1344]
[1753400256394,0.95919273,3715.9,3715.8,0.1344]
[1753400256594,3.16763808,3715.9,3715.8,0.1344]
[1753400256795,3.62333808,3715.9,3715.8,0.1344]
[1753400257123,3.65033081,3715.9,3715.8,0.1344]
[1753400257499,0.95919273,3715.9,3715.8,0.1344]
[1753400258231,0.9322,3715.9,3715.8,0.1344]
[1753400258646,3.62333808,3715.9,3715.8,0.1344]
[1753400258854,3.65033081,3715.9,3715.8,0.1344]
[1753400259941,0.95919273,3715.9,3715.8,0.1344]
[1753400260333,0.9322,3715.9,3715.8,0.1344]
[1753400260862,4.535,3715.9,3715.8,0.1344]
[1753400261855,0.4765,3716.2,3715.8,0.1344]
[1753400262154,5.0095,3716.2,3715.8,0.5969121]
[1753400262946,5.0095,3716.2,3716.1,0.1344]
[1753400263519,4.532,3716.4,3716.1,0.1344]
[1753400263747,0.9322,3716.3,3716.1,0.1344]
[1753400264056,0.9322,3716.3,3715.8,2.69119873]
[1753400264222,0.4557,3716.3,3716.2,0.1344]
[1753400264421,0.9322,3716.3,3716.2,0.1344]
[1753400266421,4.41304842,3716.3,3716.2,0.1344]
[1753400266665,4.44004115,3716.3,3716.2,0.1344]
[1753400266818,0.79,3716.2,3716.0,0.1344]
[1753400267020,7.21799324,3716.1,3716.0,0.1344]
[1753400267431,8.14979324,3716.1,3716.0,0.1344]
[1753400267638,2.69139861,3715.6,3715.2,0.001]
[1753400267862,5.3151,3715.5,3715.2,0.001]
[1753400268026,4.55299273,3715.4,3715.2,0.001]
[1753400268227,8.17629297,3715.4,3715.3,0.1344]
[1753400268465,8.93840024,3715.4,3715.3,0.1344]
[1753400268823,3.48067268,3715.3,3715.2,0.001]
[1753400269024,3.7891,3715.0,3714.6,0.001]
[1753400269229,2.69171758,3715.1,3714.6,0.001]
[1753400269230,6.48110742,3714.7,3714.6,0.001]
[1753400269732,7.41290742,3714.7,3714.6,0.001]
[1753400271064,6.2449,3714.7,3714.6,0.001]
[1753400271277,8.93690742,3714.7,3714.6,0.1354]
[1753400271476,1.7209,3714.7,3714.6,0.1354]
[1753400271654,6.2439,3714.7,3714.6,0.1354]
[1753400272169,8.93590742,3714.7,3714.6,0.1354]
[1753400272943,8.93590742,3714.7,3714.6,0.001]
[1753400273443,12.07030742,3714.7,3714.6,0.001]
[1753400274281,5.7814,3714.7,3714.6,0.001]
[1753400274483,6.2419,3714.7,3714.6,0.1354]
[1753400274664,8.93390742,3714.7,3714.6,0.1354]
[1753400274883,8.93390742,3714.7,3714.6,0.001]
[1753400275573,8.93190742,3714.7,3714.6,0.001]
[1753400277041,4.41290742,3714.7,3714.6,0.001]
[1753400277279,8.92990742,3714.7,3714.6,0.001]
[1753400278178,11.92990742,3714.7,3714.6,0.001]
[1753400278485,12.06430742,3714.7,3714.6,0.001]
[1753400279064,11.59300742,3714.7,3714.6,0.001]
[1753400279274,12.06430742,3714.7,3714.6,0.001]
[1753400285869,8.46040742,3714.7,3714.6,0.001]
[1753400286281,8.92090742,3714.7,3714.6,0.001]
[1753400287180,11.92090742,3714.7,3714.6,0.001]
[1753400290490,11.91790742,3714.7,3714.6,0.001]
[1753400290895,1.2604,3714.7,3714.6,0.001]
[1753400291112,8.45540742,3714.7,3714.6,0.001]
[1753400291412,7.19500742,3714.7,3714.6,0.001]
[1753400291582,7.66630742,3714.7,3714.6,0.001]
[1753400291916,8.12680742,3714.7,3714.6,0.001]
[1753400292308,8.07680742,3714.7,3714.6,0.001]
[1753400292711,8.85270742,3714.7,3714.6,0.001]
[1753400299030,8.38140742,3714.7,3714.6,0.001]
[1753400299234,8.86760742,3714.7,3714.6,0.001]
[1753400299727,11.86760742,3714.7,3714.6,0.001]
[1753400302042,6.95410742,3714.7,3714.6,0.001]
[1753400302250,11.44610742,3714.7,3714.6,0.001]
[1753400302823,11.91280742,3714.7,3714.6,0.001]
[1753400305179,2.69215237,3714.5,3714.4,1e-08]
[1753400305339,8.0271451,3714.5,3714.4,1e-08]
[1753400305542,9.08745237,3714.5,3714.4,1e-08]
[1753400306878,10.31355237,3714.5,3714.4,1e-08]
[1753400307061,10.17915237,3714.5,3714.4,1e-08]
[1753400310424,4.482,3714.5,3714.4,0.43460001]
[1753400311873,4.482,3714.5,3714.4,1e-08]
[1753400312112,7.17415237,3714.5,3714.4,1e-08]
[1753400312669,7.66035237,3714.5,3714.4,1e-08]
[1753400312873,8.12705237,3714.5,3714.4,1e-08]
[1753400313907,7.66035237,3714.5,3714.4,1e-08]
[1753400314208,17.24218999,3714.5,3714.4,1e-08]
[1753400315186,6.31275237,3714.5,3714.4,1e-08]
[1753400315511,7.16915237,3714.5,3714.4,0.43460001]
[1753400315903,7.16915237,3714.5,3714.4,1e-08]
[1753400317179,7.65535237,3714.5,3714.4,1e-08]
[1753400317426,8.12205237,3714.5,3714.4,1e-08]
[1753400318082,11.12205237,3714.5,3714.4,1e-08]
[1753400319216,10.65535237,3714.5,3714.4,1e-08]
[1753400319511,7.16915237,3714.5,3714.4,0.43460001]
[1753400320328,7.16915237,3714.5,3714.4,1e-08]
[1753400320680,4.471,3714.5,3714.4,1e-08]
[1753400320880,4.471,3714.5,3714.4,0.43460001]
[1753400321225,7.16215237,3714.5,3714.4,1e-08]
[1753400321543,0.002,3714.7,3714.4,0.71760001]
[1753400321711,4.469,3714.6,3714.4,0.45168001]
[1753400321913,4.469,3714.6,3714.5,0.4346]
[1753400322082,4.469,3714.6,3714.5,0.569]
[1753400322533,4.469,3714.6,3714.5,0.1344]
[1753400322712,7.1610799,3714.6,3714.5,0.1344]
[1753400324633,7.6472799,3714.6,3714.5,0.1344]
[1753400324983,10.6472799,3714.6,3714.5,0.1344]
[1753400326432,10.1610799,3714.6,3714.5,0.1344]
[1753400327138,5.69215237,3714.5,3714.4,1e-08]
[1753400327285,6.62845237,3714.5,3714.4,1e-08]
[1753400329313,6.17985237,3714.5,3714.4,1e-08]
[1753400329521,6.46034737,3714.5,3714.4,1e-08]
[1753400330019,6.90894737,3714.5,3714.4,1e-08]
[1753400330219,5.69236982,3714.2,3714.1,1e-08]
[1753400330422,11.10546982,3714.2,3714.1,1e-08]
[1753400330826,12.04176982,3714.2,3714.1,1e-08]
[1753400335216,10.28476982,3714.2,3714.1,1e-08]
[1753400335419,7.14736982,3714.2,3714.1,1e-08]
[1753400335587,7.14736982,3714.2,3714.1,0.47130001]
[1753400337526,7.14736982,3714.2,3714.1,1e-08]
[1753400337712,7.63506982,3714.2,3714.1,1e-08]
[1753400339133,7.14736982,3714.2,3714.1,1e-08]
[1753400340596,7.14736982,3714.2,3714.1,0.47130001]
[1753400341237,7.14736982,3714.2,3714.1,1e-08]
[1753400342013,7.14036982,3714.2,3714.1,1e-08]
[1753400342547,7.14036982,3714.2,3714.1,0.47130001]
[1753400343135,7.14036982,3714.2,3714.1,1e-08]
[1753400344337,2.69236982,3714.2,3714.1,0.47130001]
[1753400344648,4.446,3714.2,3714.1,0.75430001]
[1753400344809,4.446,3714.2,3714.1,0.47130001]
[1753400345407,7.13836982,3714.2,3714.1,1e-08]
[1753400348406,10.62606982,3714.2,3714.1,1e-08]
[1753400348610,10.76046982,3714.2,3714.1,1e-08]
[1753400349045,10.27276982,3714.2,3714.1,1e-08]
[1753400349213,10.76046982,3714.2,3714.1,1e-08]
[1753400349414,11.20906982,3714.2,3714.1,1e-08]
[1753400352756,11.20906982,3714.2,3713.9,0.001]
[1753400352757,0.7953,3713.8,3713.3,0.001]
[1753400352964,2.69294985,3713.4,3713.3,1e-08]
[1753400353162,11.05964985,3713.4,3713.3,1e-08]
[1753400353659,11.05964985,3713.4,3712.9,0.001]
[1753400353660,2.69316743,3713.1,3712.6,0.001]
[1753400353888,11.71185998,3712.7,3712.6,0.001]
[1753400354024,16.28225998,3712.7,3712.6,0.001]
[1753400354439,17.21855998,3712.7,3712.6,0.001]
[1753400354918,11.99545759,3712.7,3712.6,0.001]
[1753400355337,10.26385759,3712.7,3712.6,0.001]
[1753400355756,7.5704,3712.7,3712.6,0.001]
[1753400356256,4.435,3712.7,3712.6,0.4603]
[1753400356461,4.2284,3713.4,3712.6,0.4603]
[1753400356462,1.2284,3713.4,3712.6,0.4603]
[1753400356660,7.2884151,3713.3,3712.7,0.1344]
[1753400356955,2.69264431,3713.9,3713.1,2.69310411]
[1753400357128,4.434,3713.8,3713.4,0.1344]
[1753400357333,4.434,3713.8,3713.5,0.4593]
[1753400357767,7.12667864,3713.8,3713.5,0.4593]
[1753400358175,2.69280482,3713.6,3713.0,0.8234]
[1753400358345,4.45999273,3713.5,3713.3,0.1344]
[1753400358544,7.15288592,3713.5,3713.3,0.1344]
[1753400358761,7.12589319,3713.5,3713.3,0.1344]
[1753400358967,0.02699273,3713.4,3713.3,0.1344]
[1753400360776,0.02699273,3713.4,3713.3,3.5697115]
[1753400360777,4.43,3713.4,3713.3,3.5697115]
[1753400361388,4.43,3713.4,3713.3,0.8767]
[1753400361683,0.5848,3714.1,3713.3,0.5937]
[1753400361897,4.43,3714.0,3713.4,0.7423]
[1753400362040,2.69259124,3713.9,3713.4,0.4593]
[1753400362240,4.429,3713.8,3713.6,0.1344]
[1753400363348,7.57208075,3713.8,3713.6,0.1344]
[1753400364172,7.59912504,3713.7,3713.0,0.8234]
[1753400364372,2.69287733,3713.5,3713.1,0.1344]
[1753400364577,7.11899172,3713.4,3713.1,0.1344]
[1753400365156,4.426,3713.4,3713.1,0.1344]
[1753400365361,7.11895618,3713.4,3713.1,0.5937]
[1753400366296,4.426,3713.3,3713.2,0.4593]
[1753400366703,4.426,3713.3,3713.2,0.5937]
[1753400372302,4.426,3713.3,3713.2,0.1344]
[1753400372601,4.8764,3713.3,3713.2,0.1344]
[1753400372982,4.426,3713.3,3713.2,0.1344]
[1753400374773,7.11902237,3713.3,3713.2,0.1344]
[1753400375307,4.426,3713.3,3713.2,0.1344]
[1753400383873,0.1364,3713.8,3713.2,0.1344]
[1753400384108,0.002,3713.8,3713.3,0.4593]
[1753400384311,0.002,3713.8,3713.7,0.1344]
[1753400384511,0.002,3713.8,3713.7,3.60183231]
[1753400384719,0.002,3713.8,3713.7,4.15183231]
[1753400384875,0.002,3713.8,3713.7,4.89413231]
[1753400385073,0.002,3713.8,3713.7,6.17525479]
[1753400385479,0.002,3713.8,3713.7,0.9091]
[1753400385780,0.002,3713.8,3713.7,4.35803231]
[1753400386235,0.002,3713.8,3713.7,4.90803231]
[1753400386919,0.002,3713.8,3713.7,4.62503231]
[1753400391925,0.002,3713.8,3713.7,4.90803231]
[1753400392099,0.002,3713.8,3713.7,6.10862298]
[1753400393329,0.002,3713.8,3713.7,5.82562298]
[1753400393509,0.002,3713.8,3713.7,6.10862298]
[1753400394519,0.002,3713.8,3713.7,5.82562298]
[1753400394817,0.002,3713.8,3713.7,10.22362298]
[1753400395886,0.002,3713.8,3713.7,5.82562298]
[1753400396086,0.002,3713.8,3713.7,10.22262298]
[1753400397615,0.002,3713.8,3713.7,10.50562298]
[1753400397790,0.002,3713.8,3713.7,6.10862298]
[1753400397990,0.002,3713.8,3713.7,10.50462298]
[1753400398610,0.002,3713.8,3713.7,10.22162298]
[1753400400243,0.002,3713.8,3713.7,10.50462298]
[1753400401992,0.002,3713.8,3713.7,10.50062298]
[1753400402762,0.002,3713.8,3713.7,7.52289067]
[1753400402997,0.002,3713.8,3713.7,1.4591]
[1753400403274,0.002,3713.8,3713.7,8.54083231]
[1753400403430,0.002,3713.8,3713.7,9.29703231]
[1753400404769,0.002,3713.8,3713.7,4.62503231]
[1753400404978,0.002,3713.8,3713.7,9.01303231]
[1753400405262,0.002,3713.8,3713.7,10.21191417]
[1753400407767,0.002,3713.8,3713.7,9.73671417]
[1753400408334,0.002,3713.8,3713.7,10.20991417]
[1753400411941,0.002,3713.8,3713.7,10.49291417]
[1753400412140,0.002,3713.8,3713.7,9.10691417]
[1753400412341,0.002,3713.8,3713.7,13.48791417]
[1753400413252,0.002,3713.8,3713.7,13.20491417]
[1753400413867,0.002,3713.8,3713.7,12.73171417]
[1753400414067,1e-08,3713.8,3713.7,13.48791417]
[1753400414253,0.280495,3714.5,3714.4,4.05142485]
[1753400414454,0.280495,3714.5,3714.4,14.32549123]
[1753400414654,0.280495,3714.5,3714.4,18.21609123]
[1753400414971,0.002,3714.6,3714.4,18.21609123]
[1753400414972,0.002,3714.6,3714.5,3.24215237]
[1753400415135,0.002,3714.6,3714.5,7.50237389]
[1753400415338,0.002,3714.6,3714.5,7.75845237]
[1753400415535,0.002,3714.6,3714.5,10.09309807]
[1753400415742,0.002,3714.6,3714.5,14.47109807]
[1753400415948,0.002,3714.6,3714.5,14.75409807]
[1753400417049,0.002,3714.6,3714.5,14.75209807]
[1753400417249,0.002,3714.6,3714.5,10.37609807]
[1753400417449,0.002,3714.6,3714.5,14.75209807]
[1753400417648,0.002,3714.6,3714.5,10.37609807]
[1753400417864,0.002,3714.6,3714.5,14.46909807]
[1753400418373,0.4876,3714.6,3714.4,0.1344]
[1753400418562,0.4876,3714.6,3714.5,4.375]
[1753400418759,0.764,3714.5,3714.4,0.1344]
[1753400418970,3.4831451,3714.5,3714.4,0.1344]
[1753400419164,4.5655451,3714.5,3714.4,0.1344]
[1753400419367,3.97219273,3714.5,3712.9,0.001]
[1753400419564,3.0,3714.0,3712.9,0.001]
[1753400419768,2.69316743,3713.1,3713.0,4.373]
[1753400419970,2.69316743,3713.1,3713.0,0.1344]
[1753400419971,3.63836743,3713.1,3713.0,0.1344]
[1753400420142,0.97219273,3713.1,3713.0,0.1344]
[1753400420345,0.9452,3713.1,3713.0,4.5074]
[1753400420669,0.4856,3713.4,3713.0,5.42424]
[1753400420841,0.4856,3713.7,3713.3,0.1344]
[1753400421043,0.7613,3713.8,3713.6,0.1344]
[1753400421376,1.2209,3713.8,3713.7,4.373]
[1753400421572,3.9135598,3713.8,3713.7,4.373]
[1753400421774,4.3991598,3713.8,3713.7,4.373]
[1753400422871,2.69273231,3713.7,3713.6,0.1344]
[1753400423075,2.69273231,3713.7,3713.6,4.5054]
[1753400423274,3.63793231,3713.7,3713.6,4.5054]
[1753400423874,0.9452,3713.7,3713.6,4.5054]
[1753400424479,0.4856,3714.0,3713.6,7.19819193]
[1753400424668,0.4876,3714.6,3713.9,0.755]
[1753400424840,0.4876,3714.6,3714.0,7.06250931]
[1753400425044,0.4876,3714.6,3714.5,0.1344]
[1753400425280,0.4876,3714.6,3714.5,4.5044]
[1753400425679,0.9472,3714.6,3714.5,4.5044]
[1753400426973,0.9472,3714.6,3714.5,0.1344]
[1753400427279,1.7595,3714.6,3714.5,4.368]
[1753400427943,1.2999,3714.6,3714.5,4.368]
[1753400428164,0.002,3714.6,3714.5,4.368]
[1753400428774,0.002,3714.6,3714.5,7.06015237]
[1753400429183,0.002,3714.6,3714.5,8.04883645]
[1753400429354,0.002,3714.6,3714.5,9.06483645]
[1753400429956,0.002,3714.6,3714.5,0.98868408]
[1753400430280,0.4876,3714.6,3714.5,7.05715237]
[1753400431672,0.002,3714.6,3714.5,7.05715237]
[1753400432776,0.002,3714.6,3714.5,8.07315237]
[1753400432981,0.002,3714.6,3714.5,9.16735237]
[1753400433281,0.002,3714.6,3714.5,6.7954126]
[1753400433481,0.002,3714.6,3714.5,11.1584126]
[1753400434090,0.002,3714.6,3714.5,13.8754126]
[1753400434393,0.002,3714.6,3714.5,14.1584126]
[1753400434994,0.002,3714.6,3714.5,14.1564126]
[1753400437291,1e-08,3714.6,3714.5,14.1564126]
[1753400439376,1e-08,3714.6,3714.5,9.7954126]
[1753400439582,1e-08,3714.6,3714.5,14.1524126]
[1753400440004,1e-08,3714.7,3714.6,7.0345799]
[1753400440171,0.04,3714.9,3714.8,6.24193496]
[1753400440395,0.04,3714.9,3714.8,31.86101696]
[1753400440595,0.04,3714.9,3714.8,32.61001696]
[1753400440789,0.04,3714.9,3714.8,21.48903696]
[1753400440998,0.04,3714.9,3714.8,19.27683496]
[1753400441285,0.04,3714.9,3714.8,21.97592672]
[1753400442428,0.04,3714.9,3714.8,17.61992672]
[1753400442583,0.04,3714.9,3714.8,21.97492672]
[1753400443316,0.04,3714.9,3714.8,25.47784872]
[1753400443719,0.04,3714.9,3714.8,21.97492672]
[1753400443902,0.042,3714.9,3714.8,21.97492672]
[1753400444917,0.042,3714.9,3714.8,26.39598872]
[1753400445281,0.042,3714.9,3714.8,21.97492672]
[1753400445511,0.042,3714.9,3714.8,17.61992672]
[1753400445716,0.042,3714.9,3714.8,21.97092672]
[1753400446883,0.042,3714.9,3714.8,21.68792672]
[1753400447284,0.042,3714.9,3714.8,21.97092672]
[1753400447503,0.042,3714.9,3714.8,32.71002072]
[1753400447911,0.042,3714.9,3714.8,28.05756872]
[1753400448324,0.042,3714.9,3714.8,25.59656872]
[1753400448626,0.002,3716.0,3715.9,3.24113808]
[1753400448797,0.002,3716.0,3715.9,11.40873808]
[1753400449003,0.002,3716.0,3715.9,11.98383808]
[1753400449187,0.002,3716.0,3715.9,17.4792648]
[1753400449388,0.002,3716.0,3715.9,12.8472648]
[1753400449623,0.002,3716.0,3715.9,18.74911371]
[1753400449922,0.4769,3716.0,3715.9,17.48981371]
[1753400450129,0.002,3716.0,3715.9,17.93051371]
[1753400451196,0.002,3716.0,3715.9,20.64170249]
[1753400453013,0.002,3716.0,3715.9,21.75570249]
[1753400453927,1e-08,3716.0,3715.9,49.92296049]
[1753400454131,0.04,3716.9,3716.8,3.24048643]
[1753400454291,0.04,3716.9,3716.8,8.17659248]
[1753400454491,0.04,3716.9,3716.8,8.31099248]
[1753400455516,0.04,3716.9,3716.8,1.27750605]
[1753400455731,0.04,3716.9,3716.8,7.16788643]
[1753400456615,0.04,3716.9,3716.8,7.16688643]
[1753400457529,0.5149,3716.9,3716.8,7.16688643]
[1753400459125,0.04,3716.9,3716.8,7.16688643]
[1753400459699,0.04,3716.9,3716.8,2.82488643]
[1753400460036,0.04,3716.9,3716.8,0.1344]
[1753400460332,0.04,3716.9,3716.8,4.4724]
[1753400461131,0.04,3716.9,3716.8,5.0224]
[1753400461331,0.04,3716.9,3716.8,8.42918685]
[1753400461550,0.04,3716.9,3716.8,9.19528685]
[1753400461832,0.04,3716.9,3716.8,9.19428685]
[1753400463011,0.04,3716.9,3716.8,12.19428685]
[1753400464756,0.04,3716.9,3716.8,12.19328685]
[1753400464961,0.04,3716.9,3716.8,11.42718685]
[1753400465560,0.042,3716.9,3716.8,12.23128685]
[1753400467131,0.042,3716.9,3716.8,16.95926085]
[1753400467531,0.042,3716.9,3716.8,19.67995285]
[1753400467861,0.4769,3717.5,3716.8,19.67995285]
[1753400467862,0.002,3717.5,3717.4,3.24005218]
[1753400468066,0.002,3717.5,3717.4,8.16507126]
[1753400468252,0.002,3717.5,3717.4,8.29947126]
[1753400468423,0.4769,3717.5,3717.4,8.29947126]
[1753400469134,0.002,3717.5,3717.4,9.12037126]
[1753400469655,0.9072,3717.5,3717.4,8.29847126]
[1753400469954,0.9072,3717.5,3717.4,8.29747126]
[1753400470737,0.9072,3717.5,3717.4,1.27741908]
[1753400470944,0.9072,3717.5,3717.4,5.60741908]
[1753400471129,0.9072,3717.5,3717.4,5.60641908]
[1753400471469,0.9072,3717.5,3717.4,8.29647126]
[1753400471964,0.9072,3717.5,3717.4,3.96747126]
[1753400472264,0.9072,3717.5,3717.4,8.29647126]
[1753400472832,0.9072,3717.5,3717.4,13.5072734]
[1753400473034,0.4769,3717.5,3717.4,13.5072734]
[1753400473363,0.002,3717.5,3717.4,8.29647126]
[1753400473758,0.002,3717.5,3717.4,9.06717126]
[1753400473959,0.002,3717.5,3717.4,9.50787126]
[1753400474827,0.002,3717.5,3717.4,9.06717126]
[1753400475647,0.002,3717.5,3717.4,4.73817126]
[1753400475846,0.945,3717.5,3717.4,7.69945218]
[1753400477351,0.945,3717.5,3717.4,0.1344]
[1753400477528,4.45247982,3717.5,3717.4,4.4584]
[1753400478592,1.7625,3717.5,3717.4,4.4584]
[1753400479067,0.4471,3717.5,3717.4,7.69845218]
[1753400479260,0.945,3717.5,3717.4,8.075545]
[1753400479463,0.4999,3717.5,3717.4,8.075545]
[1753400480171,0.945,3717.5,3717.4,8.075545]
[1753400480579,0.002,3717.7,3717.6,3.23990746]
[1753400480872,0.002,3717.7,3717.6,7.58880653]
[1753400481074,0.002,3717.7,3717.6,10.14222143]
[1753400482775,0.002,3717.7,3717.6,9.68982143]
[1753400483285,0.002,3717.7,3717.6,9.68782143]
[1753400483483,0.4999,3717.7,3717.6,9.68782143]
[1753400483780,0.04,3717.9,3717.8,3.23976276]
[1753400483946,0.04,3717.9,3717.8,9.0351088]
[1753400484150,0.04,3717.9,3717.8,20.38009933]
[1753400484481,0.002,3718.3,3718.2,6.2394734]
[1753400484670,0.002,3718.3,3718.2,10.5584734]
[1753400485944,0.002,3718.3,3718.2,6.2394734]
[1753400486157,0.002,3718.3,3718.2,11.7645859]
[1753400487372,0.4999,3718.3,3718.2,11.7625859]
[1753400488373,0.002,3718.3,3718.2,11.7625859]
[1753400488790,0.002,3718.3,3718.2,11.7615859]
[1753400490084,0.002,3718.3,3718.2,12.5835859]
[1753400490467,0.945,3718.3,3718.2,11.2105859]
[1753400490793,0.945,3718.3,3718.2,11.7605859]
[1753400491770,0.4999,3718.3,3718.2,11.7605859]
[1753400492285,0.4851,3718.9,3718.8,2.68903947]
[1753400492489,0.4851,3718.9,3718.8,7.00103947]
[1753400492879,0.983,3718.9,3718.8,7.00103947]
[1753400493079,0.5379,3718.9,3718.8,7.55103947]
[1753400494398,0.5379,3718.9,3718.8,7.68543947]
[1753400494594,0.5379,3718.9,3718.8,8.80265052]
[1753400494817,0.002,3719.0,3718.9,3.23896716]
[1753400495023,0.002,3719.0,3718.9,3.26585683]
[1753400495222,0.4979,3719.8,3719.6,2.68846112]
[1753400495528,0.04,3719.9,3719.8,3.23831657]
[1753400495817,0.04,3719.9,3719.8,4.33730434]
[1753400496633,0.5379,3719.9,3719.8,4.33730434]
[1753400497131,0.5379,3719.9,3719.8,7.54731657]
[1753400497327,0.983,3719.9,3719.8,7.54731657]
[1753400498002,0.04,3719.9,3719.8,7.54731657]
[1753400498581,0.5379,3719.9,3719.8,3.23831657]
[1753400498816,0.002,3720.4,3719.8,0.55]
[1753400499022,0.002,3720.4,3720.3,3.23795527]
[1753400499179,0.002,3720.4,3720.3,12.09078367]
[1753400499380,0.002,3720.4,3720.3,12.51630412]
[1753400500287,0.04,3720.9,3720.8,6.23759406]
[1753400500490,0.04,3720.9,3720.8,10.54359406]
[1753400500715,0.04,3720.9,3720.8,10.67799406]
[1753400500888,0.04,3720.9,3720.8,8.50051064]
[1753400501083,0.04,3720.9,3720.8,3.37199406]
[1753400501283,0.983,3720.9,3720.8,7.67799406]
[1753400501533,0.983,3720.9,3720.8,3.37199406]
[1753400501692,0.983,3720.9,3720.8,4.9904]
[1753400502041,0.983,3720.9,3720.8,7.67799406]
[1753400502334,0.4979,3721.3,3721.2,3.23730517]
[1753400502624,0.4979,3721.3,3721.2,7.54230517]
[1753400502815,0.4979,3721.3,3721.2,7.67670517]
[1753400503326,0.943,3721.3,3721.2,4.9894]
[1753400503511,0.943,3721.3,3721.2,4.4384]
[1753400503688,4.40743295,3721.3,3721.2,4.4384]
[1753400505123,4.89804695,3721.3,3721.2,4.4384]
[1753400505331,4.89804695,3721.3,3721.2,0.1344]
[1753400505490,0.8192,3721.2,3719.8,0.82328316]
[1753400505691,0.9147,3721.1,3720.0,3.0]
[1753400505892,0.4602,3721.0,3720.5,2.68779584]
[1753400506144,0.9147,3721.0,3720.4,0.55]
[1753400506290,3.5065721,3721.2,3720.9,0.1344]
[1753400506493,2.68746942,3721.0,3720.9,0.1344]
[1753400506724,2.68746942,3721.0,3720.9,4.302]
[1753400507020,3.60216942,3721.0,3720.9,4.4364]
[1753400507223,3.60216942,3721.0,3720.9,4.4354]
[1753400507403,4.36436942,3721.0,3720.9,4.4354]
[1753400508292,4.36436942,3721.0,3720.9,0.1344]
[1753400508496,4.36436942,3721.0,3720.9,4.4354]
[1753400510327,4.36436942,3721.0,3720.9,0.1344]
[1753400510648,2.68785938,3720.5,3719.9,0.55]
[1753400510827,2.71475734,3720.6,3720.0,4.299]
[1753400511035,3.62945734,3720.6,3720.5,0.1344]
[1753400511614,3.60246461,3720.6,3720.5,0.1344]
[1753400512541,0.9147,3720.6,3720.5,0.1344]
[1753400512841,0.4602,3720.6,3720.5,0.57774]
[1753400513157,0.4602,3720.6,3720.5,3.81555077]
[1753400513441,0.9147,3720.9,3720.6,2.68773853]
[1753400513644,0.4602,3720.8,3720.7,6.98566629]
[1753400513815,0.4602,3720.8,3720.7,6.98466629]
[1753400514011,0.4602,3720.8,3720.7,8.73564611]
[1753400514714,0.4602,3721.1,3720.8,2.68758289]
[1753400515026,0.4602,3721.1,3720.7,8.73563463]
[1753400515027,0.4602,3721.0,3720.7,8.73563463]
[1753400515324,0.4545,3721.1,3721.0,0.1344]
[1753400515538,0.492614,3721.3,3721.0,2.68741286]
[1753400515856,0.947114,3721.3,3721.1,4.297]
[1753400516020,0.4602,3721.2,3721.1,4.297]
[1753400516353,0.9147,3721.2,3721.1,4.297]
[1753400516555,0.9147,3721.2,3721.1,4.4314]
[1753400518929,0.492614,3721.3,3721.2,2.68730517]
[1753400519155,0.492614,3721.3,3721.2,3.72291884]
[1753400519552,0.952814,3721.3,3721.2,3.72291884]
[1753400519751,1.407314,3721.3,3721.2,1.03561367]
[1753400520060,1.407314,3721.3,3721.1,7.11876722]
[1753400520237,0.9147,3721.2,3721.1,7.66876722]
[1753400521019,0.4602,3721.2,3721.1,7.66876722]
[1753400521221,0.4602,3721.2,3721.1,4.9784]
[1753400521422,0.9147,3721.2,3721.1,4.9784]